bitfinex-derivatives/quotes_BTCF0:USTF0_20250405
["timestamp","ask_amount","ask_price","bid_price","bid_amount"]
[1743817633027,0.2274807,84085.0,84084.0,0.0434863]
[1743817642125,0.2274807,84085.0,84076.0,0.0005947]
[1743817642126,0.0416429,84080.0,84076.0,0.0005947]
[1743817642323,0.0832886,84077.0,84076.0,0.0005947]
[1743817642518,0.08432861,84077.0,84076.0,0.0005947]
[1743817644223,0.08432861,84077.0,84076.0,0.00958294]
[1743817644627,0.08432861,84077.0,84076.0,0.08378294]
[1743817645525,0.08432861,84077.0,84076.0,0.00958294]
[1743817647927,0.08432861,84077.0,84076.0,0.08258294]
[1743817648531,0.08432861,84077.0,84076.0,0.00958294]
[1743817651033,0.0832906,84075.0,84074.0,0.10267027]
[1743817651338,0.0842906,84075.0,84074.0,0.10267027]
[1743817651837,0.2368906,84075.0,84074.0,0.10267027]
[1743817653240,0.2368906,84075.0,84074.0,0.11159279]
[1743817661440,0.2368906,84075.0,84074.0,0.04389537]
[1743817661643,0.0416458,84074.0,84070.0,0.076]
[1743817661837,0.0416458,84074.0,84072.0,8e-05]
[1743817662042,0.2658389,84073.0,84072.0,8e-05]
[1743817662248,0.2669189,84073.0,84072.0,8e-05]
[1743817663643,0.2669189,84073.0,84072.0,0.03410365]
[1743817663840,0.2669189,84073.0,84072.0,0.10430365]
[1743817665341,0.1836263,84073.0,84072.0,0.10430365]
[1743817665540,0.1141263,84073.0,84072.0,0.17520365]
[1743817666643,0.1846263,84073.0,84072.0,0.17520365]
[1743817673058,0.1846263,84073.0,84072.0,0.10430365]
[1743817675250,0.1846263,84073.0,84072.0,0.10422365]
[1743817676840,0.1846263,84073.0,84072.0,0.03402365]
[1743817677046,0.0832936,84072.0,84071.0,8e-05]
[1743817677243,0.0842936,84072.0,84071.0,8e-05]
[1743817677445,0.2352936,84072.0,84071.0,8e-05]
[1743817677747,0.2352936,84072.0,84071.0,0.02997728]
[1743817683963,0.2352936,84072.0,84071.0,0.01509154]
[1743817684165,0.0832945,84071.0,84070.0,0.08478872]
[1743817684665,0.2266945,84071.0,84070.0,0.08478872]
[1743817684964,0.2276945,84071.0,84070.0,0.08478872]
[1743817686855,0.2276945,84071.0,84070.0,0.15438872]
[1743817687569,0.2276945,84071.0,84070.0,0.18452679]
[1743817687959,0.3608,84102.0,84074.0,0.0416458]
[1743817688273,0.3608,84102.0,84070.0,0.69532679]
[1743817688274,0.0832743,84092.0,84091.0,0.7216]
[1743817689959,0.0839943,84092.0,84091.0,0.72232]
[1743817690458,0.1578943,84092.0,84091.0,0.72232]
[1743817691063,0.2295943,84092.0,84091.0,0.72232]
[1743817693669,0.2295943,84092.0,84091.0,0.36152]
[1743817694266,0.0832807,84085.0,84084.0,0.0691]
[1743817694467,0.0842807,84085.0,84084.0,0.4299]
[1743817694659,0.0842807,84085.0,84084.0,0.4305]
[1743817695056,0.2285807,84085.0,84084.0,0.4305]
[1743817695370,0.2285807,84085.0,84066.0,0.3608]
[1743817695371,0.0416439,84078.0,84066.0,0.3608]
[1743817695571,0.0832906,84075.0,84071.0,0.0715]
[1743817695866,0.08441061,84075.0,84071.0,0.0715]
[1743817696759,0.08441061,84075.0,84071.0,0.07158]
[1743817697972,0.0832936,84072.0,84071.0,0.07158]
[1743817698273,0.08449361,84072.0,84071.0,0.07158]
[1743817701672,0.08449361,84072.0,84071.0,0.43238]
[1743817705072,0.08449361,84072.0,84071.0,0.3838115]
[1743817705273,0.08449361,84072.0,84071.0,0.3837315]
[1743817705572,0.08449361,84072.0,84071.0,0.3608]
[1743817712980,0.08449361,84072.0,84071.0,0.3212251]
[1743817719381,0.0832945,84071.0,84068.0,0.36088]
[1743817719577,0.0832965,84069.0,84068.0,0.36088]
[1743817720178,0.08441651,84069.0,84068.0,0.36148]
[1743817720770,0.08441651,84069.0,84068.0,0.33242392]
[1743817721082,0.0833064,84059.0,84058.0,0.3608]
[1743817721277,0.0845864,84059.0,84058.0,0.3322661]
[1743817721481,0.0833134,84052.0,84051.0,0.0668]
[1743817721685,0.0847934,84052.0,84051.0,0.06744]
[1743817721876,0.0847934,84052.0,84051.0,0.0764046]
[1743817722276,0.2176934,84052.0,84051.0,0.0764046]
[1743817722979,0.2176934,84052.0,84051.0,0.10581791]
[1743817724481,0.2176934,84052.0,84051.0,0.17591791]
[1743817726181,0.2176934,84052.0,84051.0,0.10581791]
[1743817726482,0.2176934,84052.0,84051.0,0.03901791]
[1743817726985,0.2176934,84052.0,84051.0,0.0241286]
[1743817727184,0.0833144,84051.0,84050.0,0.00059488]
[1743817727483,0.08495441,84051.0,84050.0,0.00059488]
[1743817727687,0.22075441,84051.0,84050.0,0.00059488]
[1743817728076,0.22075441,84051.0,84050.0,0.0003788]
[1743817729488,0.22075441,84051.0,84050.0,0.00938459]
[1743817730488,0.22075441,84051.0,84050.0,0.04612829]
[1743817731880,0.0833163,84049.0,84048.0,8e-05]
[1743817732074,0.08495631,84049.0,84048.0,2e-08]
[1743817732283,0.0416601,84045.0,84041.0,8e-05]
[1743817732487,0.0833253,84040.0,84035.0,0.0708]
[1743817732787,0.08496531,84040.0,84039.0,0.36959315]
[1743817734891,0.15396531,84040.0,84039.0,0.36959315]
[1743817735489,0.0833263,84039.0,84038.0,0.072]
[1743817735690,0.15384631,84039.0,84038.0,0.072]
[1743817735991,0.15384631,84039.0,84038.0,0.1087325]
[1743817737291,0.15384631,84039.0,84038.0,0.11747508]
[1743817739586,0.08504631,84039.0,84038.0,0.18687508]
[1743817740287,0.08504631,84039.0,84038.0,0.11747508]
[1743817740690,0.15324631,84039.0,84038.0,0.11747508]
[1743817741090,0.22414631,84039.0,84038.0,0.11747508]
[1743817741893,0.22414631,84039.0,84038.0,0.1025832]
[1743817744496,0.22414631,84039.0,84038.0,0.1726832]
[1743817750708,0.15324631,84039.0,84038.0,0.1726832]
[1743817751501,0.08504631,84039.0,84038.0,0.1726832]
[1743817753304,0.0833263,84039.0,84038.0,0.3734432]
[1743817755005,0.0833256,84040.0,84038.0,0.4567703]
[1743817755204,0.0833253,84040.0,84039.0,0.3608]
[1743817755395,0.0833253,84040.0,84039.0,0.3614]
[1743817755595,0.0833242,84042.0,84039.0,0.5013]
[1743817755795,0.0833247,84041.0,84039.0,0.5013]
[1743817755995,0.0833253,84040.0,84039.0,0.5013]
[1743817757002,0.1112573,84051.0,84040.0,0.0833245]
[1743817757003,0.0833207,84045.0,84040.0,0.0833245]
[1743817757325,0.0416572,84051.0,84044.0,0.3608]
[1743817757604,0.0707,84056.0,84045.0,0.1398]
[1743817757800,0.0833193,84046.0,84045.0,0.1398]
[1743817758007,0.0833193,84046.0,84045.0,0.5012]
[1743817758906,0.0833193,84046.0,84045.0,0.5006]
[1743817760210,0.0833193,84046.0,84045.0,0.8614]
[1743817760906,0.3608,84067.0,84045.0,1.0114]
[1743817761209,0.19625324,84060.0,84059.0,0.3608]
[1743817761410,0.1249582,84060.0,84059.0,0.3608]
[1743817763506,0.1261182,84060.0,84059.0,0.36196]
[1743817767815,0.00116,84060.0,84059.0,0.4452664]
[1743817768018,0.00116,84060.0,84059.0,0.36196]
[1743817768316,0.0844654,84060.0,84059.0,0.36196]
[1743817778427,0.0844654,84060.0,84059.0,0.34707252]
[1743817780027,0.0844654,84060.0,84059.0,0.31848855]
[1743817785324,0.0844654,84060.0,84059.0,0.00116]
[1743817788637,0.0833074,84058.0,84057.0,8e-05]
[1743817788840,0.0844674,84058.0,84057.0,8e-05]
[1743817789225,0.2250674,84058.0,84057.0,8e-05]
[1743817808952,0.0833094,84056.0,84055.0,0.0686]
[1743817809965,0.0844694,84056.0,84055.0,0.06976]
[1743817810863,0.0844694,84056.0,84055.0,0.00116]
[1743817812065,0.0844694,84056.0,84055.0,0.06636]
[1743817815562,0.0844694,84056.0,84055.0,0.12986]
[1743817821866,0.0844694,84056.0,84055.0,0.00116]
[1743817822374,0.0844694,84056.0,84055.0,0.06596]
[1743817824674,0.0844694,84056.0,84055.0,0.00116]
[1743817826275,0.4452694,84056.0,84055.0,0.00116]
[1743817826472,0.0833134,84052.0,84051.0,0.0001784]
[1743817826661,0.0844734,84052.0,84051.0,0.0001784]
[1743817827267,0.2134734,84052.0,84051.0,0.0001784]
[1743817829466,0.0833203,84045.0,84044.0,0.34616894]
[1743817829667,0.08452031,84045.0,84044.0,0.34616894]
[1743817830370,0.21222031,84045.0,84044.0,0.34616894]
[1743817834878,0.21222031,84045.0,84044.0,0.41496894]
[1743817840489,0.21222031,84045.0,84044.0,0.48036894]
[1743817845895,0.21222031,84045.0,84044.0,0.1342]
[1743817849208,0.21222031,84045.0,84044.0,0.0688]
[1743817853715,0.0833213,84044.0,84043.0,8e-05]
[1743817853903,0.0833233,84042.0,84041.0,0.3608]
[1743817854109,0.0833263,84039.0,84038.0,0.04555508]
[1743817854410,0.08456631,84039.0,84038.0,0.04547508]
[1743817854610,0.0833273,84038.0,84037.0,8e-05]
[1743817854811,0.0833322,84033.0,84032.0,0.1356]
[1743817855011,0.0844922,84033.0,84032.0,0.1362]
[1743817855605,0.2177922,84033.0,84032.0,0.1362]
[1743817857112,0.2177922,84033.0,84032.0,0.17677198]
[1743817858306,0.2177922,84033.0,84032.0,0.18548789]
[1743817861113,0.2177922,84033.0,84032.0,0.11938789]
[1743817866316,0.2177922,84033.0,84032.0,0.04988789]
[1743817873811,0.2177922,84033.0,84032.0,0.03499578]
[1743817874017,0.0833332,84032.0,84031.0,8e-05]
[1743817874520,0.2189332,84032.0,84031.0,8e-05]
[1743817875220,0.2189332,84032.0,84031.0,0.04027162]
[1743817875728,0.2189332,84032.0,84031.0,0.04930577]
[1743817877226,0.2202532,84032.0,84031.0,0.04930577]
[1743817880933,0.2202532,84032.0,84031.0,0.11640577]
[1743817885032,0.2202532,84032.0,84031.0,0.04930577]
[1743817891240,0.2202532,84032.0,84031.0,0.11500577]
[1743817895428,0.0846532,84032.0,84031.0,0.11500577]
[1743817895827,0.0846532,84032.0,84031.0,0.10011474]
[1743817899435,0.1471532,84032.0,84031.0,0.10011474]
[1743817902937,0.3608,84068.0,84050.0,0.0833148]
[1743817903131,0.0833069,84059.0,84055.0,0.3608]
[1743817903436,0.0833075,84058.0,84056.0,0.138]
[1743817903735,0.08426751,84058.0,84056.0,0.138]
[1743817903942,0.0416527,84060.0,84056.0,0.138]
[1743817904641,0.0833047,84061.0,84056.0,0.138]
[1743817905029,0.1249543,84063.0,84056.0,0.138]
[1743817905228,0.0425713,84063.0,84056.0,0.1386]
[1743817905636,0.0833049,84061.0,84056.0,0.1386]
[1743817905837,0.0416513,84063.0,84056.0,0.1386]
[1743817906036,0.0833048,84061.0,84056.0,0.1386]
[1743817906237,0.2167057,84060.0,84056.0,0.1386]
[1743817906439,0.13436001,84060.0,84056.0,0.1386]
[1743817907043,0.21766581,84060.0,84056.0,0.1386]
[1743817907437,0.21766581,84060.0,84056.0,0.14763664]
[1743817908553,0.13436001,84060.0,84056.0,0.14763664]
[1743817909949,0.13436001,84060.0,84057.0,0.0833084]
[1743817910151,0.13436001,84060.0,84056.0,0.14703664]
[1743817911244,0.13436001,84060.0,84057.0,0.0833084]
[1743817911442,0.13436001,84060.0,84056.0,0.14703664]
[1743817914244,0.21766611,84060.0,84056.0,0.14703664]
[1743817916259,0.21766611,84060.0,84056.0,0.14763664]
[1743817918745,0.13436001,84060.0,84056.0,0.14763664]
[1743817918951,0.0833084,84057.0,84056.0,0.07833664]
[1743817919150,0.08426841,84057.0,84056.0,0.07833664]
[1743817919859,0.21226841,84057.0,84056.0,0.07833664]
[1743817920759,0.12896001,84057.0,84056.0,0.07833664]
[1743817922559,0.12896001,84057.0,84056.0,0.14313664]
[1743817922958,0.12896001,84057.0,84056.0,0.22644604]
[1743817923162,0.128,84057.0,84056.0,0.14313664]
[1743817923360,0.12892,84057.0,84056.0,0.14313664]
[1743817924955,0.12892,84057.0,84056.0,0.12824948]
[1743817936564,0.12892,84057.0,84056.0,0.11336241]
[1743817937274,0.12892,84057.0,84056.0,0.19667181]
[1743817938274,0.12892,84057.0,84056.0,0.11336241]
[1743817939559,0.12892,84057.0,84056.0,0.47416241]
[1743817939765,0.12892,84057.0,84056.0,0.44557923]
[1743817940276,0.12892,84057.0,84056.0,0.08477923]
[1743817940575,0.12892,84057.0,84056.0,0.44557923]
[1743817943577,0.12892,84057.0,84056.0,0.52888863]
[1743817944074,0.06532,84057.0,84056.0,0.52888863]
[1743817944378,0.0644,84057.0,84056.0,0.52888863]
[1743817944578,0.06536001,84057.0,84056.0,0.52888863]
[1743817947684,0.06536001,84057.0,84056.0,0.16808863]
[1743817947872,0.06536001,84057.0,84056.0,0.52888863]
[1743817948183,0.06536001,84057.0,84056.0,0.16808863]
[1743817948481,0.06536001,84057.0,84056.0,0.52888863]
[1743817950482,0.06536001,84057.0,84056.0,0.16808863]
[1743817950684,0.06536001,84057.0,84056.0,0.52888863]
[1743817952085,0.06536001,84057.0,84056.0,0.16808863]
[1743817952584,0.06536001,84057.0,84056.0,0.52888863]
[1743817953087,0.06536001,84057.0,84056.0,0.16808863]
[1743817953283,0.06536001,84057.0,84056.0,0.52888863]
[1743817953587,0.06536001,84057.0,84056.0,0.16808863]
[1743817953885,0.06536001,84057.0,84056.0,0.52888863]
[1743817956692,0.06536001,84057.0,84056.0,0.44557923]
[1743817957387,0.12656001,84057.0,84056.0,0.08477923]
[1743817957682,0.12656001,84057.0,84056.0,0.38077923]
[1743817957683,0.20986841,84057.0,84056.0,0.38077923]
[1743817957884,0.20986841,84057.0,84056.0,0.37043664]
[1743817960287,0.0416514,84063.0,84056.0,0.37043664]
[1743817960288,0.0832901,84076.0,84068.0,0.0832974]
[1743817960475,0.0551182,84077.0,84074.0,0.3608]
[1743817960679,0.0551182,84077.0,84075.0,0.126]
[1743817960883,0.0832896,84076.0,84075.0,0.126]
[1743817961983,0.0832896,84076.0,84075.0,0.1111152]
[1743817962190,0.0832896,84076.0,84075.0,0.16058516]
[1743817962591,0.1463896,84076.0,84075.0,0.16058516]
[1743817963588,0.1501896,84076.0,84075.0,0.16058516]
[1743817963783,0.0669,84076.0,84075.0,0.24387576]
[1743817963988,0.0669,84076.0,84075.0,0.21529698]
[1743817964486,0.1501896,84076.0,84075.0,0.21529698]
[1743817964691,0.1501896,84076.0,84075.0,0.13200638]
[1743817965096,0.1508296,84076.0,84075.0,0.13260638]
[1743817972092,0.00064,84076.0,84075.0,0.13260638]
[1743817972294,0.0626,84083.0,84076.0,0.1249339]
[1743817972498,0.0626,84083.0,84082.0,0.3608]
[1743817972499,0.0008,84083.0,84082.0,0.3608]
[1743817972689,0.0008,84083.0,84082.0,0.4448037]
[1743817972894,0.00064,84083.0,84082.0,0.5098037]
[1743817973496,0.0626,84087.0,84083.0,0.0832827]
[1743817973698,0.0009785,84084.0,84083.0,0.0840827]
[1743817973898,0.0009785,84084.0,84083.0,0.1461827]
[1743817974397,0.4024305,84105.0,84083.0,0.0629]
[1743817974584,0.0638,84092.0,84089.0,0.0832765]
[1743817974786,0.06476001,84092.0,84090.0,0.0621]
[1743817974982,0.00096001,84092.0,84090.0,0.06306]
[1743817975183,0.00096001,84092.0,84091.0,0.065]
[1743817975388,0.00096001,84092.0,84091.0,0.06596]
[1743817975793,0.0638,84093.0,84091.0,0.06596]
[1743817975993,0.0638,84093.0,84092.0,0.0621]
[1743817976183,0.0638,84093.0,84092.0,0.06306]
[1743817981094,0.1278,84093.0,84092.0,0.06306]
[1743817981603,0.1278,84093.0,84092.0,0.04817845]
[1743817985719,0.2110728,84093.0,84092.0,0.04817845]
[1743817988908,0.1278,84093.0,84092.0,0.04817845]
[1743818004618,0.2110728,84093.0,84092.0,0.00096]
[1743818005114,0.0832817,84084.0,84082.0,0.05064]
[1743818005320,0.0832817,84084.0,84083.0,0.0011384]
[1743818006023,0.2149817,84084.0,84083.0,0.0011384]
[1743818007522,0.2149817,84084.0,84083.0,0.0644384]
[1743818011925,0.2149817,84084.0,84083.0,0.0011384]
[1743818018339,0.0832837,84082.0,84081.0,0.41395556]
[1743818021032,0.0839637,84082.0,84081.0,0.41463556]
[1743818025129,0.0839637,84082.0,84081.0,0.47583556]
[1743818025328,0.0839637,84082.0,84081.0,0.53983556]
[1743818025524,0.0839637,84082.0,84081.0,0.41463556]
[1743818026939,0.0839637,84082.0,84081.0,0.42838]
[1743818028136,0.0839637,84082.0,84081.0,0.06758]
[1743818028339,0.0839637,84082.0,84081.0,0.42838]
[1743818029138,0.0839637,84082.0,84081.0,0.06758]
[1743818029337,0.0839637,84082.0,84081.0,0.42838]
[1743818031036,0.0839637,84082.0,84081.0,0.48998]
[1743818032146,0.0839637,84082.0,84081.0,0.42838]
[1743818032848,0.0839637,84082.0,84081.0,0.41349703]
[1743818033949,0.0839637,84082.0,84081.0,0.05269703]
[1743818034250,0.0839637,84082.0,84081.0,0.41349703]
[1743818035042,0.0839637,84082.0,84081.0,0.47429703]
[1743818043449,0.0839637,84082.0,84081.0,0.00068]
[1743818043653,0.0416428,84080.0,84073.0,0.0001784]
[1743818043845,0.0832916,84074.0,84073.0,0.0001784]
[1743818044153,0.0840116,84074.0,84073.0,0.0008184]
[1743818045347,0.0840116,84074.0,84073.0,0.03703204]
[1743818048659,0.0840116,84074.0,84073.0,0.03639204]
[1743818053961,0.0840116,84074.0,84073.0,0.02150669]
[1743818054161,0.0832955,84070.0,84069.0,0.06488]
[1743818054362,0.0839755,84070.0,84069.0,0.06548]
[1743818054562,0.0839755,84070.0,84069.0,0.10107962]
[1743818055163,0.2063755,84070.0,84069.0,0.10107962]
[1743818057756,0.2063755,84070.0,84069.0,0.03619962]
[1743818057952,0.2063755,84070.0,84069.0,0.03559962]
[1743818058153,0.0832965,84069.0,84068.0,8e-05]
[1743818058357,0.1466765,84069.0,84068.0,8e-05]
[1743818058557,0.2762765,84069.0,84068.0,8e-05]
[1743818058760,0.0833005,84065.0,84064.0,0.0608]
[1743818058960,0.0839805,84065.0,84064.0,0.09805578]
[1743818059162,0.0839805,84065.0,84064.0,0.09745578]
[1743818059668,0.2114805,84065.0,84064.0,0.09745578]
[1743818061672,0.0833015,84064.0,84061.0,0.0001784]
[1743818061968,0.0833035,84062.0,84061.0,0.03602116]
[1743818062164,0.0840635,84062.0,84061.0,0.0007784]
[1743818062565,0.2774635,84062.0,84061.0,0.0007784]
[1743818066573,0.2774635,84062.0,84061.0,0.0619784]
[1743818067072,0.2774635,84062.0,84061.0,0.0982449]
[1743818069976,0.2774635,84062.0,84061.0,0.0370449]
[1743818070181,0.6382635,84062.0,84061.0,0.0364449]
[1743818070375,0.6382635,84062.0,84057.0,0.0612]
[1743818070376,0.0833074,84058.0,84057.0,0.0612]
[1743818070679,0.0839874,84058.0,84057.0,0.0618]
[1743818070881,0.0839874,84058.0,84057.0,0.09692935]
[1743818071078,0.00068,84058.0,84024.0,0.00059506]
[1743818071274,0.0833233,84042.0,84041.0,0.0614]
[1743818071475,0.08420331,84042.0,84041.0,0.062]
[1743818071677,0.08428331,84042.0,84041.0,0.062]
[1743818071979,0.08428331,84042.0,84041.0,0.09723907]
[1743818074974,0.08428331,84042.0,84041.0,0.16333907]
[1743818076677,0.44508331,84042.0,84041.0,0.03583907]
[1743818076887,0.51058331,84042.0,84041.0,0.03583907]
[1743818077275,0.51058331,84042.0,84041.0,0.03523907]
[1743818077582,0.0833253,84040.0,84039.0,0.0625]
[1743818077985,0.08420531,84040.0,84039.0,0.0625]
[1743818078177,0.21520531,84040.0,84039.0,0.0625]
[1743818078982,0.21520531,84040.0,84039.0,0.0986138]
[1743818079586,0.21520531,84040.0,84039.0,0.0361138]
[1743818079774,0.0833302,84035.0,84034.0,0.0625]
[1743818079984,0.0833302,84035.0,84034.0,0.06318]
[1743818079985,0.08421021,84035.0,84034.0,0.06318]
[1743818080777,0.21071021,84035.0,84034.0,0.06318]
[1743818080974,0.21071021,84035.0,84034.0,0.07204036]
[1743818081983,0.21071021,84035.0,84034.0,0.04567512]
[1743818087175,0.21071021,84035.0,84034.0,0.03078251]
[1743818087376,0.0833332,84032.0,84031.0,0.36088]
[1743818088185,0.2119332,84032.0,84031.0,0.36088]
[1743818088677,0.2119332,84032.0,84031.0,0.36986068]
[1743818089979,0.21297321,84032.0,84031.0,0.37090068]
[1743818090588,0.57377321,84032.0,84031.0,5e-08]
[1743818092282,0.57377321,84032.0,84031.0,0.00914693]
[1743818092487,0.57377321,84032.0,84031.0,0.01050693]
[1743818093090,0.57377321,84032.0,84031.0,3e-08]
[1743818093292,0.0833352,84030.0,84029.0,0.16952015]
[1743818093498,0.0850952,84030.0,84029.0,0.16952015]
[1743818094183,0.0850952,84030.0,84029.0,0.03652015]
[1743818094392,0.0833362,84029.0,84028.0,8e-05]
[1743818094694,0.2125962,84029.0,84028.0,8e-05]
[1743818095987,0.2125962,84029.0,84028.0,0.00884982]
[1743818096189,0.2125962,84029.0,84028.0,8e-05]
[1743818096590,0.083354,84011.0,84001.0,0.3608]
[1743818096792,0.083356,84009.0,84008.0,0.05064]
[1743818097096,0.085116,84009.0,84008.0,0.08589516]
[1743818097786,0.085116,84009.0,84008.0,0.02114431]
[1743818097995,0.08336,84005.0,84004.0,0.1318]
[1743818098184,0.08512,84005.0,84004.0,0.11009162]
[1743818098891,0.14882,84005.0,84004.0,0.11009162]
[1743818099296,0.14882,84005.0,84004.0,0.118951]
[1743818102598,0.083363,84002.0,84001.0,1e-07]
[1743818102893,0.083364,84001.0,84000.0,0.0473184]
[1743818103091,0.273024,84001.0,84000.0,0.0473184]
[1743818103593,0.273024,84001.0,83998.0,0.00059525]
[1743818103594,0.0833659,83999.0,83998.0,0.00059525]
[1743818103787,0.0851259,83999.0,83998.0,1e-08]
[1743818104888,0.0851259,83999.0,83998.0,0.04479651]
[1743818105396,0.0833709,83994.0,83993.0,0.0634]
[1743818105708,0.0851309,83994.0,83993.0,0.07230382]
[1743818106397,0.2138309,83994.0,83993.0,0.07230382]
[1743818107801,0.2138309,83994.0,83993.0,0.00890382]
[1743818107994,0.0833719,83993.0,83992.0,0.10783867]
[1743818108303,0.0851319,83993.0,83992.0,0.10783867]
[1743818108599,0.2107319,83993.0,83992.0,0.10783867]
[1743818109797,0.2107319,83993.0,83992.0,0.11669639]
[1743818110199,0.2107319,83993.0,83992.0,0.05349639]
[1743818110398,0.2107319,83993.0,83991.0,0.3608]
[1743818110399,0.0833729,83992.0,83991.0,0.3608]
[1743818110587,0.0851329,83992.0,83991.0,0.3608]
[1743818110791,0.2140329,83992.0,83991.0,0.3608]
[1743818111002,0.0833759,83989.0,83988.0,0.1924]
[1743818111304,0.0851359,83989.0,83988.0,0.1924]
[1743818111900,0.2140359,83989.0,83988.0,0.1924]
[1743818112389,0.1507359,83989.0,83988.0,0.1924]
[1743818112796,0.1507359,83989.0,83988.0,0.23755925]
[1743818114703,0.1507359,83989.0,83988.0,0.24630702]
[1743818119898,0.1507359,83989.0,83988.0,0.05390702]
[1743818120097,0.1507359,83989.0,83988.0,0.0622]
[1743818120798,0.1507359,83989.0,83988.0,0.1259]
[1743818122409,0.1507359,83989.0,83988.0,0.17207742]
[1743818124306,0.1507359,83989.0,83988.0,0.18104128]
[1743818127210,0.00176,83989.0,83988.0,0.26441818]
[1743818127412,0.0652,83994.0,83989.0,0.0833754]
[1743818127604,0.1485709,83994.0,83993.0,0.3608]
[1743818127803,0.1503309,83994.0,83993.0,0.3608]
[1743818128803,0.06696,83994.0,83993.0,0.4441719]
[1743818129008,0.0652,83994.0,83993.0,0.4441719]
[1743818129214,0.1503309,83994.0,83993.0,0.4909]
[1743818129513,0.1503309,83994.0,83993.0,0.5742719]
[1743818129816,0.1503309,83994.0,83993.0,0.4909]
[1743818133124,0.1503309,83994.0,83993.0,0.1301]
[1743818133429,0.1503309,83994.0,83993.0,0.4909]
[1743818134030,0.1503309,83994.0,83993.0,0.1301]
[1743818134334,0.1503309,83994.0,83993.0,0.4909]
[1743818135832,0.1503309,83994.0,83993.0,0.1301]
[1743818136226,0.1503309,83994.0,83993.0,0.4909]
[1743818139334,0.1503309,83994.0,83993.0,0.3608]
[1743818140927,0.0833759,83989.0,83988.0,0.11624128]
[1743818141237,0.0851359,83989.0,83988.0,0.47704128]
[1743818141936,0.2021359,83989.0,83988.0,0.47704128]
[1743818142234,0.2021359,83989.0,83988.0,0.46662128]
[1743818143643,0.2021359,83989.0,83988.0,0.41594128]
[1743818151842,0.2021359,83989.0,83988.0,0.05514128]
[1743818152037,0.2021359,83989.0,83988.0,0.3608]
[1743818152237,0.0833769,83988.0,83987.0,0.065]
[1743818152438,0.0851769,83988.0,83987.0,0.43477137]
[1743818152638,0.2042769,83988.0,83987.0,0.43477137]
[1743818152840,0.2042769,83988.0,83987.0,0.36977137]
[1743818153343,0.2042769,83988.0,83987.0,0.00897137]
[1743818153647,0.2042769,83988.0,83987.0,0.3608]
[1743818153851,0.2042769,83988.0,83987.0,0.41144]
[1743818154836,0.2042769,83988.0,83987.0,0.05064]
[1743818155040,0.2042769,83988.0,83987.0,0.41144]
[1743818155435,0.2042769,83988.0,83987.0,0.05064]
[1743818155641,0.2042769,83988.0,83987.0,0.41144]
[1743818155850,0.2042769,83988.0,83987.0,0.4568524]
[1743818156444,0.2042769,83988.0,83987.0,0.0960524]
[1743818156645,0.2042769,83988.0,83987.0,0.4568524]
[1743818157249,0.0685,83988.0,83987.0,0.54900322]
[1743818157553,0.04766758,83988.0,83987.0,0.59710322]
[1743818157751,0.083372,83993.0,83991.0,0.0833733]
[1743818157951,0.085212,83993.0,83992.0,0.1697]
[1743818158148,0.00176,83993.0,83992.0,0.2530729]
[1743818158348,0.07144057,84020.0,83997.0,0.0833674]
[1743818158552,0.0416805,84004.0,84001.0,0.3608]
[1743818158856,0.083362,84003.0,84002.0,0.1245]
[1743818159049,0.085122,84003.0,84002.0,0.1245]
[1743818159351,0.083362,84003.0,84002.0,0.1245]
[1743818159553,0.083363,84002.0,84001.0,0.41156]
[1743818159856,0.085123,84002.0,84001.0,0.41156]
[1743818161954,0.085123,84002.0,84001.0,0.39666399]
[1743818164046,0.0833564,84009.0,84007.0,0.0833576]
[1743818164246,0.00124001,84009.0,84008.0,0.03390017]
[1743818164450,0.083356,84009.0,84008.0,0.03390017]
[1743818166161,0.00132,84009.0,84008.0,0.03390017]
[1743818166361,0.00132,84009.0,84008.0,0.11725717]
[1743818166860,0.0416723,84021.0,84010.0,0.0416774]
[1743818167055,0.1250164,84021.0,84020.0,0.3608]
[1743818169063,0.1258564,84021.0,84020.0,0.3608]
[1743818170160,0.1258564,84021.0,84020.0,0.3614]
[1743818174966,0.1658564,84021.0,84020.0,0.3614]
[1743818176961,0.1658564,84021.0,84020.0,0.33280486]
[1743818177774,0.1658564,84021.0,84020.0,0.31791156]
[1743818183275,0.1658564,84021.0,84020.0,0.36863156]
[1743818184974,0.1658564,84021.0,84020.0,0.05072]
[1743818185969,0.04084,84021.0,84014.0,0.083351]
[1743818186176,0.0833521,84013.0,84012.0,0.0001785]
[1743818186376,0.0833521,84013.0,84012.0,0.0508585]
[1743818187078,0.1666521,84013.0,84012.0,0.0508585]
[1743818187378,0.1666521,84013.0,84012.0,0.0001785]
[1743818189579,0.1677321,84013.0,84012.0,0.0001785]
[1743818193973,0.083354,84011.0,84010.0,8e-05]
[1743818194284,0.083364,84001.0,84000.0,0.05064]
[1743818194482,0.08440401,84001.0,84000.0,0.05064]
[1743818194783,0.0833669,83998.0,83997.0,8e-05]
[1743818195174,0.0833669,83998.0,83997.0,0.05076]
[1743818195383,0.08440691,83998.0,83997.0,0.05076]
[1743818196871,0.08440691,83998.0,83997.0,0.05068]
[1743818197275,0.0833679,83997.0,83996.0,8e-05]
[1743818197582,0.0833679,83997.0,83989.0,0.0001785]
[1743818197583,0.0833749,83990.0,83989.0,0.0001785]
[1743818197773,0.0844549,83990.0,83989.0,0.0001785]
[1743818198381,0.1661549,83990.0,83989.0,0.0002585]
[1743818198582,0.1661549,83990.0,83989.0,0.0001785]
[1743818204289,0.0844549,83990.0,83989.0,0.0001785]
[1743818204485,0.0844549,83990.0,83989.0,0.0396785]
[1743818205879,0.0844549,83990.0,83989.0,0.4004785]
[1743818207581,0.0833664,83999.0,83996.0,0.0833679]
[1743818207779,0.0833664,83999.0,83989.0,0.4004785]
[1743818207780,0.0833659,83999.0,83998.0,0.3608]
[1743818208193,0.0833659,83999.0,83998.0,0.441]
[1743818208678,0.1222659,83999.0,83998.0,0.441]
[1743818208880,0.0389,83999.0,83998.0,0.5243669]
[1743818210092,0.0833598,84006.0,83999.0,0.0416829]
[1743818210283,0.0833525,84013.0,84005.0,0.3608]
[1743818210485,0.0833546,84011.0,84008.0,0.0833568]
[1743818210684,0.083355,84010.0,84009.0,0.0788]
[1743818211190,0.0833548,84011.0,84009.0,0.1621554]
[1743818211493,0.083355,84010.0,84009.0,0.1621554]
[1743818211791,0.0001785,84018.0,84011.0,0.0416767]
[1743818211987,0.0377785,84018.0,84013.0,0.3608]
[1743818212188,0.0416745,84016.0,84014.0,0.13324]
[1743818212593,0.0376,84015.0,84014.0,0.13324]
[1743818213093,0.1209501,84015.0,84014.0,0.13324]
[1743818213391,0.1209501,84015.0,84014.0,0.17324]
[1743818214185,0.0001785,84018.0,84017.0,0.0833481]